bitfinex-derivatives/quotes_ETHF0:USTF0_20250110
["timestamp","ask_amount","ask_price","bid_price","bid_amount"]
[1736478307014,0.30804,3246.8,3246.5,41.266]
[1736478307309,1.92753979,3246.9,3246.5,41.266]
[1736478307706,0.30803,3246.9,3246.5,41.57406]
[1736478307904,0.30803,3246.9,3246.6,0.30806]
[1736478308912,3.2078,3247.0,3246.5,41.266]
[1736478309214,1.92753979,3246.9,3246.5,41.266]
[1736478309406,0.30806,3246.6,3246.5,41.266]
[1736478309809,0.9285,3246.8,3246.5,41.266]
[1736478310013,0.30805,3246.7,3246.5,41.266]
[1736478311714,1.23654,3246.8,3246.5,41.266]
[1736478311915,0.30804,3246.8,3246.5,41.266]
[1736478314219,0.30805,3246.7,3246.5,41.266]
[1736478314707,0.30809,3246.3,3246.1,0.4674]
[1736478314908,0.3081,3246.1,3245.9,0.4499]
[1736478315112,0.3081,3246.1,3246.0,40.8]
[1736478315821,1.92753979,3246.2,3245.9,0.4499]
[1736478315822,0.30811,3246.0,3245.9,0.4499]
[1736478317216,5.13533979,3246.2,3245.9,0.4499]
[1736478317412,5.13533979,3246.2,3246.0,0.30811]
[1736478317610,5.13533979,3246.2,3245.9,0.4499]
[1736478317611,0.3081,3246.1,3245.9,0.4499]
[1736478317810,5.13533979,3246.2,3245.9,0.4499]
[1736478318010,5.44343979,3246.2,3245.9,0.4499]
[1736478318515,5.13533979,3246.2,3245.9,0.4499]
[1736478318719,0.30811,3246.1,3245.9,0.4499]
[1736478318906,5.13533979,3246.2,3245.9,0.4499]
[1736478319109,0.3081,3246.1,3245.9,0.4499]
[1736478320017,5.13533979,3246.2,3245.9,0.4499]
[1736478320222,0.30811,3246.0,3245.9,0.4499]
[1736478321617,0.30813,3245.8,3245.7,40.8]
[1736478321917,1.92753979,3245.8,3245.4,0.4617]
[1736478322213,3.51595,3245.6,3245.4,0.4617]
[1736478322417,1.92753979,3245.5,3245.4,41.2617]
[1736478323216,3.2078,3245.6,3245.4,41.2617]
[1736478323417,3.2078,3245.6,3245.5,0.30816]
[1736478324121,3.2078,3245.6,3245.4,41.56987]
[1736478325221,3.2078,3245.6,3245.5,0.30816]
[1736478325828,3.2078,3245.6,3245.4,41.56987]
[1736478326428,3.2078,3245.6,3245.5,0.30816]
[1736478329637,3.2078,3245.6,3245.4,41.56987]
[1736478330536,3.2078,3245.6,3245.5,0.30816]
[1736478331036,2.39033979,3245.8,3245.6,0.30815]
[1736478332037,2.39033979,3245.8,3245.4,41.2617]
[1736478332338,2.69847979,3245.8,3245.4,41.56987]
[1736478332632,0.30815,3245.7,3245.4,41.2617]
[1736478332840,1.92753979,3245.5,3245.4,41.2617]
[1736478333430,1.92753979,3245.5,3245.4,41.56987]
[1736478334347,1.92753979,3245.5,3245.4,41.2617]
[1736478334639,2.23569979,3245.5,3245.4,0.4617]
[1736478335031,1.92753979,3245.5,3245.1,0.4326]
[1736478335336,1.92753979,3245.2,3244.8,0.9185]
[1736478335530,0.3082,3245.1,3244.8,1.22673]
[1736478335841,1.92753979,3244.9,3244.8,0.9185]
[1736478336237,1.92753979,3244.9,3244.8,1.22673]
[1736478336536,1.92753979,3244.9,3244.8,0.4657]
[1736478336832,1.92753979,3244.9,3244.7,40.8]
[1736478336833,5.13533979,3244.9,3244.7,40.8]
[1736478337036,1.92753979,3244.9,3244.7,41.54674]
[1736478337228,1.92753979,3244.9,3244.8,0.30823]
[1736478337433,3.2078,3245.3,3245.1,0.3082]
[1736478337434,1.92753979,3245.2,3245.1,0.3082]
[1736478337831,1.92753979,3245.2,3244.8,0.8833]
[1736478338036,1.92753979,3245.2,3245.0,0.3082]
[1736478338342,0.3082,3245.1,3244.8,0.4338]
[1736478338534,1.92753979,3244.9,3244.8,0.4338]
[1736478339336,1.92753979,3244.9,3244.8,0.74203]
[1736478339638,1.92753979,3245.2,3244.9,0.30821]
[1736478339838,2.23572979,3245.2,3244.8,0.74202]
[1736478340039,1.92753979,3245.2,3244.9,0.30821]
[1736478340240,1.92753979,3245.2,3245.0,0.30821]
[1736478340442,1.92753979,3245.2,3244.8,0.4338]
[1736478340635,1.92753979,3245.2,3244.9,0.30821]
[1736478341740,1.92753979,3245.2,3244.8,0.4338]
[1736478342040,1.92753979,3245.2,3245.0,0.30821]
[1736478342239,1.92753979,3245.2,3244.8,0.4338]
[1736478342240,1.92753979,3245.2,3245.1,0.3082]
[1736478342543,1.92753979,3245.5,3244.9,3.2078]
[1736478342837,1.92753979,3245.5,3245.0,0.4766]
[1736478343446,1.92753979,3245.5,3245.3,0.30817]
[1736478343637,1.92753979,3245.5,3245.4,0.4767]
[1736478343948,1.92753979,3245.5,3245.4,1.23607]
[1736478344329,5.13533979,3245.8,3245.6,0.30814]
[1736478344535,5.13533979,3245.8,3245.4,0.9279]
[1736478344741,1.92753979,3245.5,3245.4,0.9279]
[1736478344939,1.92753979,3245.5,3245.4,1.23607]
[1736478345745,5.13533979,3245.8,3245.5,0.30815]
[1736478346235,5.44346979,3245.8,3245.4,1.23607]
[1736478346845,5.13533979,3245.8,3245.5,0.30816]
[1736478347340,5.13533979,3245.8,3245.4,0.9279]
[1736478347542,5.13533979,3245.8,3245.6,0.30815]
[1736478348143,5.44346979,3245.8,3245.5,0.30816]
[1736478348544,5.13533979,3245.8,3245.6,0.30814]
[1736478349140,5.13533979,3245.8,3245.4,0.9279]
[1736478349342,5.13533979,3245.8,3245.7,0.30814]
[1736478349542,5.13533979,3245.8,3245.4,0.9279]
[1736478349743,5.13533979,3245.8,3245.6,0.30815]
[1736478350835,1.92753979,3245.8,3245.6,0.30815]
[1736478351036,0.30815,3245.7,3245.4,1.23607]
[1736478351246,0.30815,3245.7,3245.4,0.9279]
[1736478351438,0.30815,3245.7,3245.5,0.30816]
[1736478351439,0.78085,3245.7,3245.5,0.30816]
[1736478353048,0.78085,3245.7,3245.4,1.23606]
[1736478353341,0.4727,3245.7,3245.4,0.30817]
[1736478353536,0.78085,3245.7,3245.4,0.30817]
[1736478353743,0.30815,3245.6,3245.4,0.30817]
[1736478355448,2.23570979,3245.5,3245.2,0.30818]
[1736478355648,1.92753979,3245.5,3245.0,0.4509]
[1736478355845,1.92753979,3245.2,3245.0,0.7591]
[1736478356749,1.92753979,3245.2,3245.0,0.4509]
[1736478357048,2.23573979,3245.2,3245.0,0.4509]
[1736478357949,2.23573979,3245.2,3244.9,3.2078]
[1736478358346,1.92753979,3245.2,3244.8,0.435]
[1736478358549,0.8984,3245.4,3244.9,0.4424]
[1736478358747,0.4611,3245.4,3245.3,0.30818]
[1736478359655,3.2078,3245.5,3245.4,0.30817]
[1736478359949,0.30814,3245.7,3245.4,0.30817]
[1736478360142,0.30814,3245.7,3245.5,0.4557]
[1736478360750,3.11446979,3245.8,3245.5,0.76385]
[1736478361053,3.11446979,3245.8,3245.5,0.76386]
[1736478361244,0.30815,3245.7,3245.5,0.4557]
[1736478362054,2.80633979,3245.8,3245.0,0.4553]
[1736478362253,1.92753979,3245.2,3245.0,0.7635]
[1736478362460,1.92753979,3245.2,3245.1,0.3082]
[1736478362653,1.92753979,3245.2,3245.0,0.4553]
[1736478363260,2.23572979,3245.2,3245.0,0.4553]
[1736478363451,2.39183979,3245.2,3244.7,40.8]
[1736478363652,0.30823,3244.8,3244.7,40.8]
[1736478363852,0.30823,3244.8,3244.4,0.30826]
[1736478364153,1.92753979,3244.6,3244.4,0.30826]
[1736478364356,1.92753979,3244.6,3244.5,40.8]
[1736478366454,1.92753979,3244.6,3244.3,0.4385]
[1736478366651,0.30826,3244.4,3244.3,0.4385]
[1736478366953,3.95446,3244.5,3244.3,40.8]
[1736478367259,3.95446,3244.5,3244.4,0.30826]
[1736478367260,3.2078,3244.5,3244.4,0.30826]
[1736478367556,0.4529,3244.7,3244.4,0.4648]
[1736478367751,0.4529,3244.7,3244.5,0.30825]
[1736478368257,0.4529,3244.7,3244.4,0.4648]
[1736478368258,1.92753979,3244.6,3244.3,0.30827]
[1736478368461,2.23579979,3244.6,3244.2,0.30828]
[1736478369160,3.2078,3244.4,3244.2,0.30828]
[1736478369361,3.2078,3244.4,3244.1,41.10829]
[1736478369560,3.2078,3244.4,3244.3,0.30827]
[1736478370258,3.2078,3244.4,3244.2,0.30828]
[1736478370853,3.2078,3244.4,3244.1,40.8]
[1736478371052,3.2078,3244.4,3244.1,41.10829]
[1736478371659,3.2078,3244.4,3244.0,0.4746]
[1736478371660,3.6597,3244.4,3244.0,0.4746]
[1736478371863,1.92753979,3244.3,3244.0,0.7829]
[1736478372264,0.4648,3244.2,3244.0,0.7829]
[1736478372764,0.4648,3244.2,3244.0,0.4746]
[1736478373064,0.4648,3244.2,3244.0,0.7829]
[1736478373259,0.4648,3244.2,3244.0,0.4746]
[1736478373464,0.4648,3244.2,3244.0,0.7829]
[1736478373763,0.4648,3244.2,3244.1,0.30829]
[1736478373952,0.4648,3244.2,3244.0,0.7829]
[1736478375158,3.6597,3244.4,3244.0,0.4746]
[1736478375358,3.2078,3244.4,3244.2,0.30828]
[1736478375557,2.23578979,3244.6,3244.2,0.30828]
[1736478376760,2.23578979,3244.6,3244.0,0.4746]
[1736478376761,0.30826,3244.5,3244.0,0.7829]
[1736478377062,3.51607,3244.4,3244.1,0.30829]
[1736478377651,3.51607,3244.4,3244.1,41.10829]
[1736478377859,3.51607,3244.4,3244.1,40.8]
[1736478377860,3.2078,3244.4,3244.1,40.8]
[1736478378168,3.2078,3244.4,3244.1,41.10829]
[1736478378864,3.51607,3244.4,3244.1,41.10829]
[1736478379060,0.30827,3244.4,3244.1,41.10829]
[1736478379665,0.30828,3244.3,3244.0,0.7829]
[1736478379856,2.23581979,3244.3,3244.0,0.7829]
[1736478380054,1.92753979,3244.3,3244.1,0.30829]
[1736478380664,1.92753979,3244.3,3244.0,41.2746]
[1736478380871,3.2078,3244.5,3244.3,0.30827]
[1736478381164,3.2078,3244.5,3244.4,0.4324]
[1736478383071,3.2078,3244.5,3244.0,41.2746]
[1736478383370,2.23581979,3244.3,3244.0,0.7829]
[1736478383570,0.30829,3244.1,3244.0,0.4746]
[1736478384067,0.9406,3244.2,3244.0,0.4746]
[1736478384368,0.9406,3244.2,3244.0,0.7829]
[1736478384666,0.9406,3244.2,3244.0,0.4746]
[1736478384866,1.24889,3244.2,3244.0,0.4746]
[1736478385469,0.4699,3244.2,3244.0,0.7829]
[1736478385865,0.4699,3244.2,3244.0,0.4746]
[1736478386065,0.77819,3244.2,3244.0,0.4746]
[1736478386569,0.4699,3244.2,3244.0,0.4746]
[1736478387062,3.2078,3244.5,3244.3,0.30827]
[1736478387271,3.2078,3244.5,3244.4,0.30826]
[1736478387966,3.2078,3244.9,3244.1,0.4654]
[1736478388161,3.2078,3244.9,3244.8,0.30823]
[1736478388363,5.13533979,3245.5,3244.7,3.2078]
[1736478388564,3.2078,3245.5,3245.4,0.30817]
[1736478389270,12.03235583,3245.7,3245.6,0.30815]
[1736478389463,3.2078,3245.9,3245.6,0.30815]
[1736478389768,3.2078,3245.9,3245.7,0.76293]
[1736478390168,3.2078,3245.9,3245.8,0.30813]
[1736478390369,2.37583979,3246.4,3245.7,0.4548]
[1736478390568,2.37583979,3246.4,3246.1,0.3081]
[1736478390968,1.92753979,3246.4,3246.1,0.3081]
[1736478391163,1.92753979,3246.4,3245.7,0.4548]
[1736478391369,1.92753979,3246.4,3246.0,0.30811]
[1736478391671,2.23561979,3246.4,3245.9,0.30812]
[1736478392665,2.23561979,3246.4,3245.8,0.30813]
[1736478392972,1.92753979,3246.4,3246.0,0.30811]
[1736478393170,1.92753979,3246.4,3245.7,0.4548]
[1736478393378,1.92753979,3246.4,3246.0,0.30811]
[1736478393868,1.92753979,3246.4,3246.3,0.30808]
[1736478394070,3.2078,3246.6,3246.3,0.30808]
[1736478394569,3.2078,3246.6,3246.0,0.4357]
[1736478394764,0.4685,3247.4,3246.3,3.2078]
[1736478394765,5.13533979,3247.0,3246.3,3.2078]
[1736478394970,5.13533979,3247.0,3246.8,0.30803]
[1736478395370,5.13533979,3247.0,3246.5,0.30807]
[1736478395575,5.13533979,3247.0,3246.6,0.30805]
[1736478396172,5.13533979,3247.0,3246.4,40.8]
[1736478396379,3.2078,3247.0,3246.9,0.30803]
[1736478396569,2.36833979,3247.3,3246.6,0.30806]
[1736478396768,2.36833979,3247.3,3246.7,0.4747]
[1736478396967,2.36833979,3247.3,3246.9,0.30802]
[1736478397875,2.36833979,3247.3,3246.7,0.4747]
[1736478398078,2.36833979,3247.3,3247.0,0.30801]
[1736478398378,2.36833979,3247.3,3246.7,0.4747]
[1736478398379,2.36833979,3247.3,3246.8,0.30804]
[1736478398579,2.36833979,3247.3,3246.6,0.30805]
[1736478398580,1.92753979,3247.0,3246.6,0.30805]
[1736478398780,2.36833979,3247.3,3246.5,0.4414]
[1736478398983,2.36833979,3247.3,3246.9,0.30803]
[1736478399885,2.36833979,3247.3,3246.5,41.2414]
[1736478400181,0.30803,3246.9,3246.5,0.4414]
[1736478400382,5.44335979,3247.0,3246.5,0.4414]
[1736478401581,5.44335979,3247.0,3246.5,0.74946]
[1736478403782,5.44335979,3247.0,3246.6,0.30806]
[1736478404081,3.2078,3246.9,3246.6,0.30806]
[1736478404883,3.51583,3246.9,3246.6,0.30806]
[1736478405782,3.2078,3246.9,3246.6,0.30806]
[1736478405982,3.2078,3246.9,3246.5,0.4414]
[1736478406185,3.51583,3246.9,3246.5,0.74946]
[1736478406382,3.51583,3246.9,3246.6,40.8]
[1736478406884,3.51583,3246.9,3246.6,41.10805]
[1736478407682,3.51583,3246.9,3246.6,40.8]
[1736478408287,3.51583,3246.9,3246.6,41.10806]
[1736478408985,3.2078,3246.8,3246.6,40.8]
[1736478409381,0.4766,3246.7,3246.6,40.8]
[1736478409584,2.40413979,3246.7,3246.6,40.8]
[1736478410087,0.4766,3246.7,3246.6,0.30806]
[1736478410288,3.2078,3246.8,3246.7,0.30805]
[1736478410588,4.1343,3247.2,3246.4,40.8]
[1736478410786,4.4423,3247.2,3246.8,0.30803]
[1736478410976,4.1343,3247.2,3246.4,40.8]
[1736478411175,3.2078,3247.2,3247.1,0.30801]
[1736478413386,0.4567,3247.4,3246.8,0.4773]
[1736478413989,0.4567,3247.4,3247.1,0.30801]
[1736478414687,0.4567,3247.4,3246.8,0.4773]
[1736478414895,0.30799,3247.3,3246.9,0.30802]
[1736478415085,1.92753979,3247.3,3246.8,0.4773]
[1736478415390,0.4567,3247.4,3247.2,0.308]
[1736478415581,0.4567,3247.4,3246.8,0.4773]
[1736478415789,0.4567,3247.4,3247.1,0.30801]
[1736478415983,0.4567,3247.4,3247.2,0.30799]
[1736478417181,5.13533979,3247.6,3246.8,0.4773]
[1736478417383,3.2078,3247.6,3247.5,0.30797]
[1736478419193,3.2078,3248.0,3247.9,0.30793]
[1736478419393,3.2078,3248.0,3247.6,40.8]
[1736478419691,3.2078,3248.0,3247.8,0.30794]
[1736478420292,3.2078,3248.0,3247.9,0.30793]
[1736478420790,0.4679,3248.2,3247.7,0.4572]
[1736478420791,0.4679,3248.2,3248.1,0.30791]
[1736478421288,0.4679,3248.2,3248.0,0.30792]
[1736478422189,3.2078,3248.4,3247.7,0.4572]
[1736478422586,3.2078,3248.4,3248.1,0.30791]
[1736478422789,1.92753979,3248.5,3247.7,0.9296]
[1736478422990,1.92753979,3248.5,3248.2,0.3079]
[1736478423495,5.90208979,3248.8,3248.3,0.30789]
[1736478423693,5.90208979,3248.8,3248.0,3.2078]
[1736478423694,3.6667,3248.8,3248.0,5.13533979]
[1736478423895,3.2078,3249.2,3248.8,0.30785]
[1736478424095,3.2078,3249.2,3248.4,3.2078]
[1736478424096,3.2078,3249.2,3248.5,0.479]
[1736478424292,3.2078,3249.2,3248.9,0.30784]
[1736478424494,3.2078,3249.2,3248.8,0.30784]
[1736478424896,3.2078,3249.2,3248.9,41.10783]
[1736478426503,3.2078,3249.2,3249.0,0.30783]
[1736478426706,3.2078,3249.2,3248.9,40.8]
[1736478427105,3.2078,3249.2,3249.0,0.30782]
[1736478428011,3.2078,3249.2,3248.9,40.8]
[1736478428216,3.2078,3249.2,3248.5,0.479]
[1736478428513,3.2078,3249.2,3248.6,0.30787]
[1736478428712,3.2078,3249.2,3248.9,0.30783]
[1736478430206,1.92753979,3249.4,3249.1,0.30782]
[1736478430401,3.2078,3249.6,3248.8,0.4636]
[1736478430601,0.30779,3249.5,3248.9,0.30784]
[1736478430805,0.30779,3249.5,3249.1,0.30781]
[1736478431213,3.51558,3249.6,3249.1,0.30781]
[1736478431613,0.30778,3249.5,3249.1,0.30781]
[1736478431806,1.92753979,3249.4,3248.8,0.4636]
[1736478432011,3.51561,3249.2,3248.8,0.4636]
[1736478432512,3.2078,3249.2,3249.0,0.30782]
[1736478432711,3.2078,3249.2,3248.9,0.30783]
[1736478433013,3.51561,3249.2,3248.8,0.77144]
[1736478433512,3.51561,3249.2,3247.7,5.52886072]
[1736478433513,1.92753979,3249.1,3248.0,3.2078]
[1736478433708,1.92753979,3249.1,3247.8,0.9196]
[1736478433709,3.2078,3248.4,3247.8,0.9196]
[1736478433910,3.2078,3248.4,3247.9,40.8]
[1736478433911,0.30791,3248.2,3247.9,40.8]
[1736478434114,3.2078,3248.1,3247.9,41.10793]
[1736478434408,0.7503,3248.3,3247.9,41.10793]
[1736478434610,0.7503,3248.3,3247.9,40.8]
[1736478434817,0.30791,3248.2,3247.9,40.8]
[1736478435015,0.4424,3248.3,3247.9,40.8]
[1736478435210,3.2078,3248.5,3248.2,0.3079]
[1736478435420,3.2078,3248.9,3248.1,3.2078]
[1736478435812,3.2078,3248.9,3248.7,0.30785]
[1736478436119,0.4448,3249.0,3248.7,0.30785]
[1736478436317,0.4448,3249.0,3248.6,0.30786]
[1736478436816,3.2078,3249.3,3249.0,0.30782]
[1736478437920,3.2078,3249.3,3248.8,0.4347]
[1736478438324,3.2078,3249.3,3248.9,0.30784]
[1736478438624,3.2078,3249.3,3248.8,0.4347]
[1736478438813,3.2078,3249.3,3249.1,0.30782]
[1736478439522,3.2078,3249.3,3249.2,40.8]
[1736478440610,0.4448,3249.6,3249.2,40.8]
[1736478440815,0.4448,3249.6,3249.2,41.1078]
[1736478443115,0.4448,3249.6,3248.9,3.2078]
[1736478443317,0.4448,3249.6,3249.0,0.30782]
[1736478443617,0.30779,3249.4,3249.0,0.30782]
[1736478444218,0.30778,3249.5,3249.0,0.30782]
[1736478445212,0.75257,3249.6,3249.1,0.30781]
[1736478445422,0.4448,3249.6,3249.3,0.30779]
[1736478445822,0.4448,3249.6,3248.9,40.8]
[1736478446015,3.2078,3249.7,3249.1,1.92753979]
[1736478446218,3.2078,3249.7,3249.6,0.30777]
[1736478446422,4.596,3250.2,3249.8,0.30774]
[1736478446620,4.596,3250.2,3249.9,0.30774]
[1736478446815,4.90372,3250.2,3249.2,0.4458]
[1736478447019,4.90372,3250.2,3249.7,0.30775]
[1736478447213,4.596,3250.2,3249.8,0.4663]
[1736478447421,3.2078,3250.2,3249.9,0.4395]
[1736478447619,3.2078,3250.2,3250.1,0.30772]
[1736478448021,3.2078,3250.6,3249.9,0.8853]
[1736478448222,3.2078,3250.6,3250.2,0.30771]
[1736478448524,3.2078,3250.6,3249.9,0.8853]
[1736478448724,3.2078,3250.6,3249.9,0.4395]
[1736478448924,0.30769,3250.5,3250.0,0.30773]
[1736478449125,0.30769,3250.5,3250.1,40.8]
[1736478449927,3.51552,3250.2,3249.8,3.2078]
[1736478450127,3.51552,3250.2,3249.8,0.30775]
[1736478450128,3.2078,3250.2,3249.8,0.30775]
[1736478450327,0.30774,3249.9,3249.7,40.8]
[1736478450527,0.30774,3249.9,3249.5,0.30778]
[1736478450927,3.56146979,3250.1,3249.6,40.8]
[1736478451127,0.4453,3250.1,3249.6,40.8]
[1736478451325,1.92753979,3250.4,3249.6,40.8]
[1736478451629,2.23523979,3250.4,3249.7,0.4521]
[1736478451832,0.75301,3250.3,3249.8,0.30775]
[1736478452028,3.51552,3250.2,3249.8,0.30775]
[1736478452429,0.9482,3250.1,3249.8,0.30775]
[1736478452635,0.9482,3250.1,3249.6,40.8]
[1736478452832,1.25593,3250.1,3249.6,40.8]
[1736478453033,1.25593,3250.1,3249.7,0.30776]
[1736478453833,0.9482,3250.1,3249.6,40.8]
[1736478454029,0.9482,3250.1,3249.7,0.30776]
[1736478454237,0.9482,3250.1,3249.6,40.8]
[1736478454434,0.9482,3250.1,3249.8,0.30775]
[1736478454933,0.9482,3250.1,3249.7,0.30776]
[1736478455136,0.9482,3250.1,3249.6,40.8]
[1736478455333,0.30774,3250.0,3249.6,40.8]
[1736478455632,0.30774,3250.0,3249.6,41.10776]
[1736478455827,1.25593,3250.1,3249.6,41.10776]
[1736478456231,3.2078,3250.2,3249.9,0.30774]
[1736478456539,3.51552,3250.2,3249.8,0.30775]
[1736478456732,3.51552,3250.2,3249.9,0.4429]
[1736478456935,3.2078,3250.2,3250.1,0.30772]
[1736478457236,3.2078,3250.6,3250.0,0.4496]
[1736478457540,3.2078,3250.6,3250.5,0.30769]
[1736478457840,3.2078,3250.6,3250.5,41.10769]
[1736478459235,3.2078,3250.6,3250.5,40.8]
[1736478459639,1.92753979,3251.0,3250.5,40.8]
[1736478459837,4.598,3251.1,3250.6,0.4594]
[1736478460034,4.90564,3251.1,3250.8,0.30766]
[1736478460437,4.598,3251.1,3250.8,0.30766]
[1736478460633,4.90563,3251.1,3250.7,0.4573]
[1736478460938,4.598,3251.1,3250.8,0.30766]
[1736478461135,3.677,3251.1,3250.9,0.30764]
[1736478461340,3.2078,3251.1,3250.9,0.30764]
[1736478462136,3.2078,3251.1,3250.9,0.30765]
[1736478462334,3.2078,3251.1,3250.7,0.4573]
[1736478462539,0.30765,3250.9,3250.6,0.4594]
[1736478462739,0.30766,3250.8,3250.6,0.4594]
[1736478463040,0.30768,3250.6,3250.2,41.10771]
[1736478463232,0.30768,3250.6,3250.2,41.56071]
[1736478463434,3.2078,3250.7,3250.2,41.253]
[1736478463435,3.51547,3250.7,3250.2,41.253]
[1736478463633,3.51547,3250.7,3250.3,0.3077]
[1736478463835,0.30768,3250.6,3250.2,0.453]
[1736478464037,5.13533979,3250.7,3250.2,0.453]
[1736478464038,0.30769,3250.5,3250.2,0.453]
[1736478464639,5.13533979,3250.7,3250.2,0.453]
[1736478464640,0.4472,3250.4,3250.2,0.453]
[1736478464837,0.4472,3250.4,3250.2,0.76071]
[1736478465138,3.2078,3250.7,3250.2,0.453]
[1736478465532,0.30768,3250.6,3250.2,0.76071]
[1736478465933,0.30769,3250.5,3250.2,0.453]
[1736478466641,5.13533979,3250.7,3250.1,40.8]
[1736478466847,3.2078,3250.3,3250.1,40.8]
[1736478467150,0.75081,3250.2,3250.1,40.8]
[1736478467738,0.75081,3250.2,3249.6,0.4655]
[1736478467739,0.4431,3250.2,3249.6,0.4655]
[1736478468043,3.2078,3249.9,3249.6,0.30777]
[1736478468242,3.2078,3249.9,3249.7,40.8]
[1736478468537,3.51555,3249.9,3249.7,40.8]
[1736478470339,0.30775,3249.8,3249.7,40.8]
[1736478470545,0.30779,3249.4,3249.3,0.4424]
[1736478470740,0.30778,3249.5,3249.3,0.4424]
[1736478471043,0.30778,3249.5,3249.4,40.8]
[1736478471236,0.9167,3249.7,3249.4,40.8]
[1736478471445,0.9167,3249.7,3249.3,0.4424]
[1736478471446,0.30778,3249.6,3249.3,0.4424]
[1736478471943,0.9167,3249.7,3249.3,40.8]
[1736478472546,0.30777,3249.6,3249.3,40.8]
[1736478472934,0.30777,3249.6,3249.3,41.1078]
[1736478474242,1.22446,3249.7,3249.4,0.30778]
[1736478474446,1.22446,3249.7,3249.4,0.76098]
[1736478474652,1.22446,3249.7,3249.5,0.4586]
[1736478475144,0.30777,3249.6,3249.5,0.4586]
[1736478477445,0.9167,3249.7,3249.4,0.4532]
[1736478477647,3.51558,3249.5,3249.3,40.8]
[1736478478047,5.13533979,3249.5,3249.3,40.8]
[1736478478249,0.3078,3249.3,3249.0,0.30782]
[1736478478650,0.30781,3249.2,3248.9,1.21253]
[1736478478850,5.13533979,3249.5,3249.0,0.30783]
[1736478479154,0.3078,3249.3,3249.0,0.30783]
[1736478479450,3.2078,3249.1,3248.8,40.8]
[1736478479648,0.30784,3249.0,3248.8,40.8]
[1736478480652,3.2078,3249.1,3249.0,0.30783]
[1736478481146,3.2078,3249.1,3248.8,40.8]
[1736478481345,3.2078,3249.1,3248.9,0.30784]
[1736478481847,3.51562,3249.1,3248.8,40.8]
[1736478482054,3.2078,3249.1,3248.8,40.8]
[1736478482250,0.30784,3248.9,3248.8,40.8]
[1736478483150,3.6428,3249.1,3248.8,40.8]
[1736478483358,3.2078,3249.1,3248.8,40.8]
[1736478483553,3.2078,3249.1,3248.9,0.30783]
[1736478484452,3.51562,3249.1,3248.8,40.8]
[1736478484952,3.51562,3249.1,3248.9,0.30783]
[1736478484953,3.2078,3249.1,3248.9,0.30783]
[1736478486154,3.2078,3249.1,3248.9,0.78443]
[1736478486358,3.2078,3249.1,3248.9,0.78444]
[1736478486750,3.2078,3249.1,3248.9,0.4766]
[1736478486957,3.2078,3249.1,3248.9,0.78444]
[1736478487259,3.2078,3249.1,3248.9,0.78443]
[1736478489349,3.2078,3249.1,3249.0,0.30783]
[1736478490051,5.44312979,3249.5,3249.1,0.30781]
[1736478490252,1.92753979,3249.2,3248.8,40.8]
[1736478490457,3.51562,3249.1,3248.8,40.8]
[1736478490654,3.2078,3249.1,3248.6,3.2078]
[1736478490954,0.30783,3249.0,3248.6,3.51566]
[1736478491160,0.30783,3249.0,3248.7,40.8]
[1736478491556,3.6463,3249.1,3248.7,40.8]
[1736478491751,3.6463,3249.1,3248.8,0.30785]
[1736478492262,3.6463,3249.1,3248.7,40.8]
[1736478492560,0.30783,3249.0,3248.7,41.10786]
[1736478492859,0.30783,3249.0,3248.7,40.8]
[1736478494155,4.5632,3249.1,3248.7,40.8]
[1736478494351,0.30783,3249.0,3248.7,41.10785]
[1736478494553,4.5632,3249.1,3248.7,41.10785]
[1736478494554,4.5632,3249.1,3248.7,40.8]
[1736478494749,0.30784,3248.9,3248.7,40.8]
[1736478495256,4.0927,3249.1,3248.8,0.30785]
[1736478495459,0.30783,3249.0,3248.7,41.10785]
[1736478496154,0.30784,3248.9,3248.7,40.8]
[1736478496461,3.95412,3249.1,3248.7,41.10785]
[1736478496958,0.30783,3249.0,3248.7,41.10785]
[1736478497153,0.30783,3249.0,3248.7,40.8]
[1736478497354,3.2078,3249.1,3249.0,0.30783]
[1736478498264,2.70141979,3249.6,3249.2,0.30781]
[1736478498457,2.39363979,3249.6,3249.3,0.4766]
[1736478498757,2.70141979,3249.6,3249.3,0.4766]
[1736478499160,2.39363979,3249.6,3249.3,0.4766]
[1736478499359,0.30779,3249.4,3249.3,0.4766]
[1736478499753,2.39363979,3249.6,3248.7,40.8]
[1736478499956,1.92753979,3249.2,3248.7,0.4766]
[1736478500157,0.30784,3248.9,3248.7,0.4766]
[1736478500464,0.30783,3249.0,3248.7,0.78445]
[1736478500766,0.30783,3249.0,3248.8,0.30784]
[1736478501066,1.24652,3249.1,3248.8,0.30784]
[1736478501459,0.30783,3249.0,3248.8,0.30784]
[1736478502058,0.30783,3249.0,3248.7,0.4766]
[1736478502059,0.9387,3249.1,3248.7,0.4766]
[1736478502269,0.4406,3249.0,3248.7,0.4766]
[1736478502461,0.74843,3249.0,3248.7,0.78445]
[1736478502963,3.51564,3248.9,3248.7,0.4766]
[1736478503855,5.13533979,3248.9,3248.2,3.2078]
[1736478504056,0.30788,3248.5,3248.2,3.2078]
[1736478504256,0.30788,3248.5,3248.2,3.5157]
[1736478504457,0.436,3248.4,3248.2,3.5157]
[1736478505665,0.436,3248.4,3248.2,3.2078]
[1736478505964,0.436,3248.4,3247.1,3.2078]
[1736478505965,5.13533979,3248.3,3247.1,3.2078]
[1736478506170,0.30795,3247.8,3247.5,0.4408]
[1736478506468,0.30795,3247.8,3247.6,40.8]